bitfinex/quotes_BTCUSD_20240701
["timestamp","ask_amount","ask_price","bid_price","bid_amount"]
[1719854127406,0.55677447,63196.0,63195.0,0.000924]
[1719854127602,0.5197995,63196.0,63195.0,0.000924]
[1719854128172,0.67975588,63196.0,63195.0,0.000924]
[1719854128354,0.74454652,63196.0,63195.0,0.000924]
[1719854128566,1.02589277,63196.0,63195.0,0.000924]
[1719854128766,1.02589186,63196.0,63195.0,0.000924]
[1719854129068,1.01289186,63196.0,63195.0,0.000924]
[1719854129242,0.8529469,63196.0,63195.0,0.000924]
[1719854129462,0.8529469,63196.0,63195.0,0.00087621]
[1719854129770,0.8669469,63196.0,63195.0,0.00087621]
[1719854131859,0.81979697,63196.0,63195.0,0.00087621]
[1719854132060,0.87705866,63196.0,63195.0,0.00087621]
[1719854133516,0.83398663,63196.0,63195.0,0.00087621]
[1719854133919,0.76918663,63196.0,63195.0,0.00087621]
[1719854134336,0.83398663,63196.0,63195.0,0.00087621]
[1719854134491,0.72908663,63196.0,63195.0,0.00087621]
[1719854134925,0.60068663,63196.0,63195.0,0.00087621]
[1719854135124,0.60065215,63196.0,63195.0,0.00087621]
[1719854136968,0.37882295,63196.0,63195.0,0.00087621]
[1719854137165,0.44362295,63196.0,63195.0,0.13507621]
[1719854137365,0.40258867,63196.0,63195.0,0.13507621]
[1719854137569,0.54474832,63196.0,63195.0,0.13507621]
[1719854138367,0.62539358,63196.0,63195.0,0.13507621]
[1719854138728,0.62536785,63196.0,63195.0,0.13507621]
[1719854139326,0.48322329,63196.0,63195.0,0.13507621]
[1719854140371,0.41842329,63196.0,63195.0,0.13507621]
[1719854140574,0.48322329,63196.0,63195.0,0.13507621]
[1719854140954,0.54664029,63196.0,63195.0,0.13507621]
[1719854141558,0.54667854,63196.0,63195.0,0.13507621]
[1719854142477,0.54667854,63196.0,63195.0,0.00087621]
[1719854142724,0.54762967,63196.0,63195.0,0.00087621]
[1719854144487,0.59047825,63196.0,63195.0,0.00087621]
[1719854144691,0.57631364,63196.0,63195.0,0.00087621]
[1719854144935,0.59045848,63196.0,63195.0,0.00087621]
[1719854145479,0.58950735,63196.0,63195.0,0.00087621]
[1719854145974,0.59045848,63196.0,63195.0,0.00087621]
[1719854146345,0.52470735,63196.0,63195.0,0.00087621]
[1719854146570,0.59045848,63196.0,63195.0,0.00087621]
[1719854147939,0.59047845,63196.0,63195.0,0.00087621]
[1719854148345,0.5334665,63196.0,63195.0,0.00087621]
[1719854148543,0.75061758,63196.0,63195.0,0.00087621]
[1719854148809,0.63188002,63196.0,63195.0,0.00087621]
[1719854149514,0.55026401,63196.0,63195.0,0.23297621]
[1719854150262,0.50922973,63196.0,63195.0,0.23297621]
[1719854151280,0.46608912,63196.0,63195.0,0.23297621]
[1719854151449,0.50994022,63196.0,63195.0,0.23297621]
[1719854151657,0.60310189,63196.0,63195.0,0.23297621]
[1719854152953,0.55925079,63196.0,63195.0,0.23297621]
[1719854153265,0.60302848,63196.0,63195.0,0.23297621]
[1719854153453,0.60397961,63196.0,63195.0,0.23297621]
[1719854154155,0.60302848,63196.0,63195.0,0.23297621]
[1719854154359,0.54501216,63196.0,63195.0,0.23297621]
[1719854154514,0.603039,63196.0,63195.0,0.23297621]
[1719854157069,0.64407328,63196.0,63195.0,0.23297621]
[1719854157422,0.52570058,63196.0,63195.0,0.23297621]
[1719854157874,0.54554282,63196.0,63195.0,0.23297621]
[1719854158231,0.54551457,63196.0,63195.0,0.23297621]
[1719854158453,0.70539684,63196.0,63195.0,0.23297621]
[1719854160665,0.31358243,63196.0,63195.0,0.51936111]
[1719854160876,0.15678215,63196.0,63195.0,0.51936111]
[1719854161403,0.19449581,63196.0,63195.0,0.51936111]
[1719854161608,0.15658614,63196.0,63195.0,0.51936111]
[1719854161780,0.02408512,63196.0,63195.0,0.51936111]
[1719854161984,0.01008512,63196.0,63195.0,0.51936111]
[1719854162208,0.014,63196.0,63195.0,0.51936111]
[1719854162409,0.02404768,63196.0,63195.0,0.51936111]
[1719854162654,0.01904768,63196.0,63195.0,0.51936111]
[1719854162841,0.01004768,63196.0,63195.0,0.51936111]
[1719854163059,0.01104768,63196.0,63195.0,0.51936111]
[1719854163607,0.01104768,63196.0,63195.0,1.02408111]
[1719854163976,0.2199151,63198.0,63197.0,1.0282899]
[1719854164195,0.2199151,63198.0,63197.0,1.3447599]
[1719854164864,0.2199151,63198.0,63197.0,1.6612299]
[1719854165067,0.2199151,63198.0,63197.0,1.7260299]
[1719854165068,0.1070151,63198.0,63197.0,1.7260299]
[1719854165271,0.1090151,63198.0,63197.0,1.6632299]
[1719854165503,0.1090151,63198.0,63197.0,1.7280299]
[1719854166831,0.19614019,63208.0,63197.0,1.7280299]
[1719854166832,0.19614019,63208.0,63207.0,1.055384]
[1719854167076,0.00084,63214.0,63213.0,0.7909699]
[1719854167276,0.00084,63214.0,63213.0,1.0991699]
[1719854167427,0.00084,63214.0,63213.0,1.4155599]
[1719854167832,0.00084,63220.0,63219.0,1.355294]
[1719854168036,0.00842,63230.0,63228.0,1.604741]
[1719854168198,0.00842,63230.0,63228.0,1.288426]
[1719854169421,0.00842,63230.0,63228.0,1.258426]
[1719854169663,0.00842,63230.0,63228.0,0.783954]
[1719854169857,0.0023,63229.0,63228.0,0.789954]
[1719854170099,0.0023,63229.0,63228.0,0.79193197]
[1719854170565,0.0013,63229.0,63228.0,0.78593197]
[1719854170799,0.0013,63229.0,63228.0,0.78909672]
[1719854171007,0.0023,63229.0,63228.0,0.79509672]
[1719854171183,0.0023,63229.0,63228.0,0.79311875]
[1719854171581,0.0023,63229.0,63228.0,0.789954]
[1719854172220,0.0013,63229.0,63228.0,0.783954]
[1719854172574,0.0013,63229.0,63228.0,0.784954]
[1719854173080,0.00250939,63229.0,63228.0,0.789954]
[1719854173271,0.0023,63229.0,63228.0,0.790954]
[1719854174040,0.0023,63229.0,63228.0,0.885754]
[1719854174287,0.0023,63229.0,63228.0,1.043911]
[1719854174412,0.0023,63229.0,63228.0,0.790954]
[1719854174617,0.0013,63229.0,63228.0,0.784954]
[1719854176119,0.0013,63229.0,63228.0,0.785954]
[1719854176527,0.0013,63229.0,63228.0,0.815954]
[1719854177765,0.0013,63229.0,63228.0,0.974111]
[1719854179093,0.0013,63229.0,63228.0,0.944111]
[1719854179298,0.0013,63229.0,63228.0,0.785954]
[1719854180985,0.0013,63229.0,63228.0,0.552754]
[1719854181195,0.0013,63229.0,63228.0,0.795854]
[1719854182255,0.0013,63229.0,63228.0,0.825854]
[1719854182405,20.0013,63229.0,63228.0,0.825854]
[1719854182749,20.01139861,63229.0,63228.0,0.825854]
[1719854184430,20.01139861,63229.0,63228.0,0.795854]
[1719854185363,20.01139861,63229.0,63228.0,0.825854]
[1719854185745,20.01139861,63229.0,63228.0,0.795854]
[1719854187921,20.01139861,63229.0,63228.0,0.825854]
[1719854192931,20.01139861,63229.0,63228.0,1.048811]
[1719854193154,20.01139861,63229.0,63228.0,1.365126]
[1719854193356,20.01139861,63229.0,63228.0,1.665126]
[1719854193556,20.01139861,63229.0,63228.0,1.981441]
[1719854194010,20.01139861,63229.0,63228.0,1.681441]
[1719854196059,20.01139861,63229.0,63228.0,2.46009498]
[1719854196414,20.01139861,63229.0,63228.0,2.59158065]
[1719854196624,20.01139861,63229.0,63228.0,2.76009498]
[1719854196822,20.01139861,63229.0,63228.0,2.89157847]
[1719854197028,20.01139861,63229.0,63228.0,2.89157651]
[1719854197227,20.01139861,63229.0,63228.0,3.40789151]
[1719854197452,20.01139861,63229.0,63228.0,3.09157651]
[1719854198349,20.01139861,63229.0,63228.0,3.09057651]
[1719854198543,20.01139861,63229.0,63228.0,2.89057651]
[1719854198794,20.01239861,63229.0,63228.0,3.10257651]
[1719854199129,20.01239861,63229.0,63228.0,2.90257651]
[1719854199335,20.01239861,63229.0,63228.0,3.10257651]
[1719854199538,20.01239861,63229.0,63228.0,3.10157651]
[1719854199736,20.01239861,63229.0,63228.0,2.97009498]
[1719854199983,20.01339861,63229.0,63228.0,3.1135729]
[1719854201321,20.01339861,63229.0,63228.0,3.0487729]
[1719854201533,20.01339861,63229.0,63228.0,0.70623192]
[1719854201758,20.01339861,63229.0,63228.0,0.574754]
[1719854201759,20.013608,63229.0,63228.0,0.574754]
[1719854202735,20.013608,63229.0,63228.0,0.562754]
[1719854202736,20.012608,63229.0,63228.0,0.562754]
[1719854202948,20.012608,63229.0,63228.0,0.558754]
[1719854203410,20.33728069,63229.0,63228.0,0.52970513]
[1719854203616,20.44438069,63229.0,63228.0,0.52170513]
[1719854203848,20.28204698,63229.0,63228.0,0.52270513]
[1719854205648,20.28204698,63229.0,63228.0,0.52170513]
[1719854206051,20.41424698,63229.0,63228.0,0.2643691]
[1719854206454,20.41824698,63229.0,63228.0,0.52270513]
[1719854206830,20.58758069,63229.0,63228.0,0.52370513]
[1719854207262,20.58758069,63229.0,63228.0,0.2663691]
[1719854207489,20.58758069,63229.0,63228.0,0.52370513]
[1719854207686,20.58758069,63229.0,63228.0,0.2663691]
[1719854208431,20.58853182,63229.0,63228.0,0.2663691]
[1719854208629,20.75254448,63229.0,63228.0,0.2663691]
[1719854208997,20.76847241,63229.0,63228.0,0.2663691]
[1719854209436,20.76752128,63229.0,63228.0,0.2663691]
[1719854209689,20.81639335,63229.0,63228.0,0.2663691]
[1719854209888,20.76752394,63229.0,63228.0,0.2663691]
[1719854210038,20.76769074,63229.0,63228.0,0.2663691]
[1719854210448,20.76864187,63229.0,63228.0,0.2663691]
[1719854210827,20.76769074,63229.0,63228.0,0.2663691]
[1719854211211,20.76864187,63229.0,63228.0,0.2663691]
[1719854211567,20.76864187,63229.0,63228.0,0.002]
[1719854211767,20.78280268,63229.0,63228.0,0.002]
[1719854211966,20.82650906,63229.0,63228.0,0.002]
[1719854212209,20.82650906,63229.0,63219.0,0.07934304]
[1719854212210,0.00095113,63220.0,63219.0,0.07934304]
[1719854212443,0.75513969,63220.0,63219.0,0.07934304]
[1719854212595,0.98156306,63220.0,63219.0,0.07934304]
[1719854212799,1.03189668,63220.0,63219.0,0.07934304]
[1719854213401,1.03189668,63220.0,63215.0,0.07934304]
[1719854213402,0.24356052,63216.0,63215.0,0.07934304]
[1719854213599,0.44499689,63216.0,63215.0,0.07934304]
[1719854213952,0.55428726,63216.0,63215.0,0.07934304]
[1719854214248,0.55428726,63216.0,63199.0,0.5769]
[1719854214249,0.00020939,63208.0,63207.0,0.34371214]
[1719854214401,0.3252995,63208.0,63207.0,0.34371214]
[1719854214605,0.43044837,63208.0,63207.0,0.34371214]
[1719854214783,0.43044837,63208.0,63207.0,0.60104817]
[1719854214784,0.70152768,63208.0,63207.0,0.60104817]
[1719854215585,0.70152768,63208.0,63207.0,0.60055269]
[1719854215781,0.71552768,63208.0,63207.0,0.60055269]
[1719854215981,0.70152768,63208.0,63207.0,0.60055269]
[1719854216588,0.72952768,63208.0,63207.0,0.34321666]
[1719854216793,0.72952768,63208.0,63207.0,0.62960156]
[1719854217049,0.72952768,63208.0,63207.0,0.60055269]
[1719854217205,0.72952768,63208.0,63207.0,0.34321666]
[1719854217797,0.72952768,63208.0,63207.0,0.60055269]
[1719854219242,0.72952768,63208.0,63207.0,0.34321666]
[1719854219417,0.80352669,63208.0,63207.0,0.34321666]
[1719854220346,0.00116052,63206.0,63199.0,0.2643691]
[1719854220661,0.41434981,63206.0,63199.0,0.52170513]
[1719854220850,0.61821927,63206.0,63200.0,0.25733603]
[1719854221040,0.62736979,63206.0,63200.0,0.25733603]
[1719854221693,0.29469889,63206.0,63205.0,0.25752648]
[1719854221893,0.28569889,63206.0,63205.0,0.28657535]
[1719854222189,0.27169889,63206.0,63205.0,0.28657535]
[1719854222392,0.28569889,63206.0,63205.0,0.25752648]
[1719854222602,0.27169889,63206.0,63205.0,0.25752648]
[1719854223175,0.29469889,63206.0,63205.0,0.25752648]
[1719854223739,0.28469889,63206.0,63205.0,0.25752648]
[1719854223947,0.35710189,63206.0,63205.0,0.28657535]
[1719854224774,0.36910189,63206.0,63205.0,0.28657535]
[1719854225186,0.56524208,63206.0,63205.0,0.28657535]
[1719854226037,0.33929071,63206.0,63205.0,0.28657535]
[1719854226411,0.33929071,63206.0,63205.0,0.53487535]
[1719854226719,0.23929071,63206.0,63205.0,0.69309035]
[1719854226921,0.23929071,63206.0,63205.0,0.53487535]
[1719854227123,0.23014019,63206.0,63205.0,0.53487535]
[1719854227382,0.23928177,63206.0,63205.0,0.53487535]
[1719854227718,0.23928177,63206.0,63205.0,0.00019045]
[1719854227719,0.4118651,63206.0,63205.0,0.00019045]
[1719854227887,0.65281623,63206.0,63205.0,0.00019045]
[1719854228046,0.77581623,63206.0,63205.0,0.00019045]
[1719854228785,0.7748651,63206.0,63205.0,0.00219045]
[1719854229188,0.7658651,63206.0,63205.0,0.00019045]
[1719854229386,0.7778651,63206.0,63205.0,0.00119045]
[1719854230616,0.78881623,63206.0,63205.0,0.00119045]
[1719854230747,0.77681623,63206.0,63205.0,0.00019045]
[1719854230951,0.76681623,63206.0,63205.0,0.00019045]
[1719854231211,0.7798651,63206.0,63205.0,0.00119045]
[1719854231556,0.48183014,63206.0,63205.0,0.25852648]
[1719854231764,0.48183014,63206.0,63205.0,0.00211445]
[1719854231959,0.48183014,63206.0,63205.0,0.25945048]
[1719854232355,0.49483014,63206.0,63205.0,0.25945048]
[1719854233466,0.49483014,63206.0,63205.0,0.28849935]
[1719854233680,0.49462075,63206.0,63205.0,0.28849935]
[1719854233885,0.49483014,63206.0,63205.0,0.28849935]
[1719854234095,0.49483014,63206.0,63205.0,0.25945048]
[1719854234515,0.49483014,63206.0,63205.0,0.28849935]
[1719854235950,0.58458715,63206.0,63205.0,0.25945048]
[1719854236110,0.58458715,63206.0,63205.0,0.00211445]
[1719854236314,0.58458715,63206.0,63205.0,0.25945048]
[1719854236506,0.60195338,63206.0,63205.0,0.25945048]
[1719854237408,0.60195338,63206.0,63205.0,0.00211445]
[1719854237578,0.73080451,63206.0,63205.0,0.00211445]
[1719854237826,0.71343828,63206.0,63205.0,0.00211445]
[1719854238009,0.73079501,63206.0,63205.0,0.00211445]
[1719854238985,0.7707394,63206.0,63205.0,0.00211445]
[1719854239192,0.92675413,63206.0,63205.0,0.00211445]
[1719854240872,0.9093974,63206.0,63205.0,0.00211445]
[1719854241090,0.92663937,63206.0,63205.0,0.00211445]
[1719854241511,0.92667083,63206.0,63205.0,0.00211445]
[1719854241858,0.9257197,63206.0,63205.0,0.00211445]
[1719854241996,0.6800197,63206.0,63205.0,0.00211445]
[1719854242420,0.64848267,63206.0,63205.0,0.00211445]
[1719854243566,0.51783014,63206.0,63205.0,0.52381958]
[1719854243771,0.54927604,63206.0,63205.0,0.26648355]
[1719854244385,0.54927604,63206.0,63205.0,0.52381958]
[1719854244543,0.54927604,63206.0,63205.0,0.26648355]
[1719854244943,0.66899231,63206.0,63205.0,0.26648355]
[1719854245179,0.71083896,63206.0,63205.0,0.26648355]
[1719854245595,0.69366285,63206.0,63205.0,0.26648355]
[1719854245792,0.95736692,63206.0,63205.0,0.00211445]
[1719854247275,0.97472816,63206.0,63205.0,0.00211445]
[1719854247687,0.93288151,63206.0,63205.0,0.00211445]
[1719854247891,0.9741423,63206.0,63205.0,0.00211445]
[1719854248312,0.97509343,63206.0,63205.0,0.00211445]
[1719854248565,0.97525505,63206.0,63205.0,0.00211445]
[1719854248909,0.85458765,63206.0,63205.0,0.00211445]
[1719854249285,0.85553878,63206.0,63205.0,0.00211445]
[1719854251776,0.82335796,63206.0,63205.0,0.00211445]
[1719854251973,0.85542144,63206.0,63205.0,0.00211445]
[1719854252402,1.01722144,63206.0,63205.0,0.00211445]
[1719854252595,0.90590106,63206.0,63205.0,0.00211445]
[1719854253175,0.90494993,63206.0,63205.0,0.00211445]
[1719854253382,0.60957031,63206.0,63205.0,0.00211445]
[1719854253594,0.77137031,63206.0,63205.0,0.00211445]
[1719854254142,0.77232144,63206.0,63205.0,0.00211445]
[1719854255089,0.7728681,63206.0,63205.0,0.00211445]
[1719854255296,0.89080834,63206.0,63205.0,0.00211445]
[1719854255493,0.90631212,63206.0,63205.0,0.00211445]
[1719854256144,1.15771212,63206.0,63205.0,0.00211445]
[1719854257162,1.22282882,63206.0,63205.0,0.00211445]
[1719854257322,1.22187769,63206.0,63205.0,0.00211445]
[1719854257530,1.08845286,63206.0,63205.0,0.00211445]
[1719854257756,1.08940399,63206.0,63205.0,0.00211445]
[1719854258213,0.83705286,63206.0,63205.0,0.00211445]
[1719854258483,0.9138715,63206.0,63205.0,0.00211445]
[1719854258982,0.77214589,63206.0,63205.0,0.00211445]
[1719854259190,0.90885215,63206.0,63205.0,0.00211445]
[1719854259620,0.67556226,63206.0,63205.0,0.25945048]
[1719854259877,0.8374109,63206.0,63205.0,0.00211445]
[1719854261624,0.83806693,63206.0,63205.0,0.00211445]
[1719854265141,0.83815175,63206.0,63205.0,0.00211445]
[1719854266881,0.83910288,63206.0,63205.0,0.00211445]
[1719854267303,0.96823717,63206.0,63205.0,0.00211445]
[1719854267861,1.22253717,63206.0,63205.0,0.00211445]
[1719854268315,1.22273396,63206.0,63205.0,0.00211445]
[1719854268717,1.22289213,63206.0,63205.0,0.00211445]
[1719854271445,1.22296591,63206.0,63205.0,0.00211445]
[1719854274188,0.00116052,63204.0,63203.0,0.26352363]
[1719854274489,0.18463682,63204.0,63203.0,0.26352363]
[1719854274692,0.39556524,63204.0,63203.0,0.26352363]
[1719854274869,0.41474701,63204.0,63203.0,0.26352363]
[1719854275881,0.41379588,63204.0,63203.0,0.26352363]
[1719854276086,0.42379588,63204.0,63203.0,0.26352363]
[1719854276281,0.42474701,63204.0,63203.0,0.26352363]
[1719854277075,0.43674701,63204.0,63203.0,0.26352363]
[1719854277709,0.42474701,63204.0,63203.0,0.26352363]
[1719854277865,0.42379588,63204.0,63203.0,0.26352363]
[1719854278077,0.59949409,63204.0,63203.0,0.26352363]
[1719854278555,0.60044522,63204.0,63203.0,0.26352363]
[1719854278983,0.59044522,63204.0,63203.0,0.26352363]
[1719854279542,0.60444522,63204.0,63203.0,0.26352363]
[1719854279752,0.44264522,63204.0,63203.0,0.26352363]
[1719854279952,0.50744522,63204.0,63203.0,0.26352363]
[1719854280587,0.50649409,63204.0,63203.0,0.26352363]
[1719854280918,0.50694071,63204.0,63203.0,0.26352363]
[1719854281128,0.50789204,63204.0,63203.0,0.26352363]
[1719854281333,0.40800445,63204.0,63203.0,0.26352363]
[1719854281537,0.50786311,63204.0,63203.0,0.26352363]
[1719854281747,0.50786311,63204.0,63203.0,0.25840665]
[1719854281963,0.50691198,63204.0,63203.0,0.25840665]
[1719854282169,0.48577466,63204.0,63203.0,0.25840665]
[1719854282371,0.39797466,63204.0,63203.0,0.51574268]
[1719854282572,0.46277466,63204.0,63203.0,0.51574268]
[1719854282921,0.46277466,63204.0,63203.0,0.25840665]
[1719854283701,0.4629107,63204.0,63203.0,0.25840665]
[1719854284304,0.53496743,63204.0,63203.0,0.25840665]
[1719854285001,0.53591856,63204.0,63203.0,0.25840665]
[1719854285173,0.53496743,63204.0,63203.0,0.25840665]
[1719854286989,0.44942214,63204.0,63203.0,0.25840665]
[1719854287162,0.53415742,63204.0,63203.0,0.25840665]
[1719854287765,0.53510855,63204.0,63203.0,0.25840665]
[1719854288170,0.00020939,63201.0,63200.0,0.1089]
[1719854288373,0.22734837,63201.0,63200.0,0.1089]
[1719854288550,0.36837711,63201.0,63200.0,0.1089]
[1719854288928,0.43408824,63201.0,63200.0,0.1089]
[1719854289510,0.44708824,63201.0,63200.0,0.1089]
[1719854289713,0.54525254,63201.0,63200.0,0.1089]
[1719854290366,0.54549376,63201.0,63200.0,0.1089]
[1719854290968,0.00020939,63199.0,63198.0,0.07934304]
[1719854291215,0.1634995,63199.0,63198.0,0.07934304]
[1719854291421,0.2936458,63199.0,63198.0,0.07934304]
[1719854291595,0.3936458,63199.0,63198.0,0.07934304]
[1719854291756,0.47391387,63199.0,63198.0,0.07934304]
[1719854292165,0.48391387,63199.0,63198.0,0.07934304]
[1719854292561,0.484865,63199.0,63198.0,0.07934304]
[1719854293188,0.48391387,63199.0,63198.0,0.07934304]
[1719854293394,0.48428851,63199.0,63198.0,0.07934304]
[1719854293753,0.3989445,63199.0,63198.0,0.07934304]
[1719854293991,0.4845679,63199.0,63198.0,0.07934304]
[1719854294195,0.00020939,63197.0,63196.0,0.25840665]
[1719854294413,0.47855057,63197.0,63196.0,0.25840665]
[1719854294613,0.60910559,63197.0,63196.0,0.25840665]
[1719854295147,0.67520287,63197.0,63196.0,0.25840665]
[1719854295395,0.69769736,63197.0,63196.0,0.25840665]
[1719854295862,0.80203162,63197.0,63196.0,0.25840665]
[1719854296595,0.80192043,63197.0,63196.0,0.25840665]
[1719854297756,0.57760175,63197.0,63196.0,0.25840665]
[1719854297994,0.57633856,63197.0,63196.0,0.51574268]
[1719854298201,0.57633856,63197.0,63196.0,0.54479155]
[1719854298418,0.50417453,63197.0,63196.0,0.79789155]
[1719854298620,0.50417453,63197.0,63196.0,0.76884268]
[1719854298846,0.50417453,63197.0,63196.0,0.79789155]
[1719854298978,0.31883555,63197.0,63196.0,0.79789155]
[1719854299180,0.25542255,63197.0,63196.0,0.79789155]
[1719854299805,0.21421537,63197.0,63196.0,0.79789155]
[1719854300151,0.21400598,63197.0,63196.0,0.79789155]
[1719854300320,0.1910015,63197.0,63196.0,0.82789155]
[1719854300521,0.01555502,63197.0,63196.0,0.98612855]
[1719854300718,0.01555502,63197.0,63196.0,0.82789155]
[1719854300897,0.008,63197.0,63196.0,1.05092855]
[1719854301570,0.01484,63204.0,63203.0,0.73301155]
[1719854301826,0.01484,63204.0,63203.0,2.46257053]
[1719854302032,0.02242333,63204.0,63203.0,2.46257053]
[1719854302232,0.01484,63204.0,63203.0,2.46257053]
[1719854302984,0.00084,63207.0,63206.0,2.2238719]
[1719854303179,0.09439962,63227.0,63226.0,0.2863849]
[1719854303456,0.00020939,63232.0,63228.0,0.2863849]
[1719854303457,20.00150939,63229.0,63228.0,0.2863849]
[1719854303588,20.0013,63229.0,63228.0,0.2863849]
[1719854303793,20.0013,63229.0,63228.0,0.7810419]
[1719854303988,20.0013,63229.0,63228.0,1.0325569]
[1719854304222,20.0013,63229.0,63228.0,0.5280849]
[1719854304676,20.0013,63229.0,63228.0,0.53006262]
[1719854305338,20.0013,63229.0,63228.0,0.53322697]
[1719854305793,20.0013,63229.0,63228.0,0.53124925]
[1719854306882,20.0013,63229.0,63228.0,0.5280849]
[1719854307606,20.0013,63229.0,63228.0,0.27074887]
[1719854307826,20.0013,63229.0,63228.0,0.2467]
[1719854308381,20.0013,63229.0,63228.0,0.78649155]
[1719854308797,20.0013,63229.0,63228.0,0.78749155]
[1719854309435,20.0013,63229.0,63228.0,0.78649155]
[1719854310203,20.00150939,63229.0,63228.0,0.78649155]
[1719854310413,20.0013,63229.0,63228.0,0.78649155]
[1719854311016,20.00150939,63229.0,63228.0,0.78649155]
[1719854311360,20.00150939,63229.0,63228.0,0.64839155]
[1719854311568,20.00150939,63229.0,63228.0,0.51574268]
[1719854311964,20.00150939,63229.0,63228.0,0.54779155]
[1719854312177,20.0013,63229.0,63228.0,0.54779155]
[1719854312381,20.0013,63229.0,63228.0,0.54479155]
[1719854312597,20.00150939,63229.0,63228.0,0.54479155]
[1719854312736,20.12617411,63229.0,63228.0,0.51574268]
[1719854313165,20.00250939,63229.0,63228.0,0.51574268]
[1719854313567,20.18784837,63229.0,63228.0,0.51574268]
[1719854314780,20.28784837,63229.0,63228.0,0.25840665]
[1719854316649,20.29564844,63229.0,63228.0,0.25840665]
[1719854317618,20.29564844,63229.0,63228.0,0.54479155]
[1719854317815,20.11010007,63229.0,63228.0,0.54479155]
[1719854318038,20.11030946,63229.0,63228.0,0.54479155]
[1719854318438,20.11010007,63229.0,63228.0,0.54479155]
[1719854318614,20.11030946,63229.0,63228.0,0.54479155]
[1719854319217,20.11010007,63229.0,63228.0,0.68519155]
[1719854322470,20.10910007,63229.0,63228.0,0.71519155]
[1719854323472,20.10910007,63229.0,63228.0,0.71719155]
[1719854323680,20.00910007,63229.0,63228.0,1.29846355]
[1719854323863,20.00910007,63229.0,63228.0,2.07711753]
[1719854324067,20.00910007,63229.0,63228.0,2.09343253]
[1719854324306,20.0013,63229.0,63228.0,2.09343253]
[1719854324542,20.0013,63229.0,63228.0,2.39343253]
[1719854324751,20.0013,63229.0,63228.0,2.39143253]
[1719854325122,20.0023,63229.0,63228.0,2.09543253]
[1719854326107,20.0023,63229.0,63228.0,1.61677855]
[1719854326504,20.0023,63229.0,63228.0,1.61277855]
[1719854326732,20.0013,63229.0,63228.0,1.61277855]
[1719854327655,20.0013,63229.0,63228.0,1.29646355]
[1719854328244,20.0023,63229.0,63228.0,1.30946355]
[1719854328644,20.0013,63229.0,63228.0,1.29646355]
[1719854328844,20.0013,63229.0,63228.0,1.30346355]
[1719854329161,20.0023,63229.0,63228.0,1.30346355]
[1719854329365,20.0013,63229.0,63228.0,1.29646355]
[1719854329573,20.0013,63229.0,63228.0,0.54479155]
[1719854329774,20.0023,63229.0,63228.0,0.58179155]
[1719854330322,20.00314,63229.0,63228.0,0.58179155]
[1719854330464,20.00314,63229.0,63228.0,0.83059155]
[1719854331218,20.00314,63229.0,63228.0,0.98174855]
[1719854331430,20.00214,63229.0,63228.0,1.29806355]
[1719854331809,20.00214,63229.0,63228.0,1.30406355]
[1719854332336,20.00214,63229.0,63228.0,1.29806355]
[1719854332513,20.00214,63229.0,63228.0,1.30406355]
[1719854332916,20.00214,63229.0,63228.0,2.23669355]
[1719854333291,20.00214,63229.0,63228.0,1.93669355]
[1719854336368,20.00314,63229.0,63228.0,1.94369355]
[1719854337131,20.00314,63229.0,63228.0,1.31106355]
[1719854339770,20.00314,63229.0,63228.0,0.83659155]
[1719854340601,20.00314,63229.0,63228.0,0.99474855]
[1719854342190,20.00314,63229.0,63228.0,0.55779155]
[1719854342336,20.00314,63229.0,63228.0,0.58779155]
[1719854342749,20.00314,63229.0,63228.0,0.55779155]
[1719854344879,20.06645452,63229.0,63228.0,0.55779155]
[1719854345238,20.17346391,63229.0,63228.0,0.52874268]
[1719854345443,20.33580289,63229.0,63228.0,0.52874268]
[1719854345676,20.4763935,63229.0,63228.0,0.55779155]
[1719854345906,20.00314,63229.0,63228.0,0.55779155]
[1719854346443,20.00314,63229.0,63228.0,0.55079155]
[1719854346645,20.00214,63229.0,63228.0,0.55079155]
[1719854347068,20.00214,63229.0,63228.0,0.55279155]
[1719854347915,20.00214,63229.0,63228.0,0.54679155]
[1719854348305,20.00214,63229.0,63228.0,0.54879155]
[1719854348704,20.16447371,63229.0,63228.0,0.54879155]
[1719854348903,20.1646831,63229.0,63228.0,0.54879155]
[1719854349127,20.2977831,63229.0,63228.0,0.54879155]
[1719854349331,20.2977831,63229.0,63228.0,0.26240665]
[1719854349332,20.56632208,63229.0,63228.0,0.26240665]
[1719854349528,20.74864445,63229.0,63228.0,0.26240665]
[1719854349824,20.88094803,63229.0,63228.0,0.26240665]
[1719854350026,20.76294661,63229.0,63228.0,0.26240665]
[1719854350425,0.00020939,63225.0,63224.0,0.07934304]
[1719854350665,0.77760403,63225.0,63224.0,0.07934304]
[1719854350866,1.06150403,63225.0,63224.0,0.07934304]
[1719854351222,1.2215292,63225.0,63224.0,0.07934304]
[1719854351413,0.23726052,63221.0,63220.0,0.25840665]
[1719854351553,0.3995995,63221.0,63220.0,0.25840665]
[1719854351749,0.67594436,63221.0,63220.0,0.25840665]
[1719854352182,0.79381755,63221.0,63220.0,0.25840665]
[1719854352341,0.67594436,63221.0,63220.0,0.25840665]
[1719854352741,0.71683384,63221.0,63220.0,0.25840665]
[1719854352998,0.73116821,63221.0,63220.0,0.25840665]
[1719854353659,0.74021708,63221.0,63220.0,0.25940665]
[1719854353883,0.90111708,63221.0,63220.0,0.25940665]
[1719854354087,0.88782789,63221.0,63220.0,0.25940665]
[1719854354252,0.91516147,63221.0,63220.0,0.26040665]
[1719854354484,0.77862713,63221.0,63220.0,0.26040665]
[1719854354887,0.59472713,63221.0,63220.0,0.26040665]
[1719854355110,0.53598195,63221.0,63220.0,0.51774268]
[1719854355310,0.55335892,63221.0,63220.0,0.51774268]
[1719854355650,0.53598195,63221.0,63220.0,0.51774268]
[1719854355847,0.53902527,63221.0,63220.0,0.51774268]
[1719854356641,0.53881588,63221.0,63220.0,0.26040665]
[1719854356843,0.70135898,63221.0,63220.0,0.26040665]
[1719854357253,0.70135898,63221.0,63220.0,0.002]
[1719854357254,0.84583321,63221.0,63220.0,0.002]
[1719854357453,0.8860884,63221.0,63220.0,0.002]
[1719854358222,0.90038437,63221.0,63220.0,0.002]
[1719854358437,0.941269,63221.0,63220.0,0.002]
[1719854359258,1.08253463,63221.0,63220.0,0.002]
[1719854359459,0.941269,63221.0,63220.0,0.002]
[1719854360186,0.94031787,63221.0,63220.0,0.002]
[1719854360524,0.92612998,63221.0,63220.0,0.002]
[1719854360734,0.92708111,63221.0,63220.0,0.002]
[1719854360943,0.92612998,63221.0,63220.0,0.002]
[1719854361137,0.88619648,63221.0,63220.0,0.002]
[1719854361624,0.88524535,63221.0,63220.0,0.002]
[1719854362290,0.63454535,63221.0,63220.0,0.25933603]
[1719854362494,0.44921164,63221.0,63220.0,0.25933603]
[1719854363246,0.56683101,63221.0,63220.0,0.002]
[1719854363456,0.56778214,63221.0,63220.0,0.002]